bitfinex-derivatives/quotes_ETHF0:USTF0_20250417
["timestamp","ask_amount","ask_price","bid_price","bid_amount"]
[1744911775091,1.25525778,1605.6,1605.5,1.24594]
[1744911775904,0.00932778,1605.6,1605.5,1.24594]
[1744911776115,1.25518778,1605.6,1605.5,2.20634]
[1744911778517,1.24594,1605.5,1605.4,5.77797]
[1744911778815,2.85714,1605.5,1605.4,5.77797]
[1744911779113,1.24609,1605.3,1605.0,3.2078]
[1744911779413,1.24609,1605.3,1605.2,1.24617]
[1744911779809,3.88859,1605.3,1605.2,1.24617]
[1744911780010,3.88859,1605.3,1605.2,2.91317]
[1744911782018,0.9131,1605.4,1605.3,1.24609]
[1744911782215,3.91085778,1605.6,1605.5,1.24594]
[1744911783420,3.91085778,1605.6,1605.5,2.86544]
[1744911783622,2.23705778,1605.6,1605.5,2.86544]
[1744911784114,2.23705778,1605.6,1605.5,7.39844]
[1744911784524,1.25525778,1605.6,1605.5,7.39844]
[1744911784922,2.91505778,1605.6,1605.5,7.39844]
[1744911785424,2.91505778,1605.6,1605.5,6.1525]
[1744911786223,2.91505778,1605.6,1605.5,7.39844]
[1744911788227,1.25525778,1605.6,1605.5,7.39844]
[1744911788526,0.00932778,1605.6,1605.5,7.39844]
[1744911789224,0.00932778,1605.6,1605.5,10.60624]
[1744911789827,1.25518778,1605.6,1605.5,10.60624]
[1744911790029,0.00932778,1605.6,1605.5,10.60624]
[1744911790324,1.25518778,1605.6,1605.5,10.60624]
[1744911790526,0.00932778,1605.6,1605.5,10.60624]
[1744911791321,1.24568,1605.9,1605.8,1.2457]
[1744911791718,2.1708,1606.0,1605.9,1.24563]
[1744911792322,3.8145,1606.0,1605.9,2.88693]
[1744911792927,1.2456,1606.0,1605.9,2.88693]
[1744911794938,0.00932778,1606.1,1606.0,1.24555]
[1744911795132,0.00932778,1606.1,1606.0,3.88915]
[1744911795532,1.25479778,1606.1,1606.0,3.88915]
[1744911795834,2.96839778,1606.1,1606.0,3.88915]
[1744911796233,1.24555,1606.0,1605.9,3.2078]
[1744911796434,2.95915,1606.0,1605.9,4.45336]
[1744911796633,3.90125,1606.0,1605.9,4.45336]
[1744911796828,0.00932778,1606.1,1605.9,4.45336]
[1744911797029,0.00932778,1606.1,1606.0,2.92755]
[1744911797230,0.00932778,1606.1,1606.0,4.85485]
[1744911798536,1.46442,1606.3,1606.2,1.24539]
[1744911798736,3.93773,1606.7,1606.6,1.24508]
[1744911799035,9.48294135,1606.9,1606.8,1.24493]
[1744911799241,11.18384135,1606.9,1606.8,1.24493]
[1744911799737,11.18384135,1606.9,1606.8,2.84063]
[1744911800927,1.24493,1606.8,1606.7,0.00932778]
[1744911801132,3.81993,1606.8,1606.7,0.00932778]
[1744911805039,8.81993,1606.8,1606.7,0.00932778]
[1744911805936,3.81993,1606.8,1606.7,0.00932778]
[1744911807741,3.81993,1606.8,1606.7,1.25433778]
[1744911808540,3.81993,1606.8,1606.7,0.00932778]
[1744911809842,3.2078,1606.9,1606.7,0.00932778]
[1744911810138,2.86944778,1607.0,1606.9,1.24485]
[1744911810436,2.86944778,1607.0,1606.9,2.96175]
[1744911810633,2.86944778,1607.0,1606.9,1.7169]
[1744911811138,2.86944778,1607.0,1606.9,2.96175]
[1744911811739,6.07724778,1607.0,1606.9,2.96175]
[1744911811932,2.86944778,1607.0,1606.9,2.96175]
[1744911812544,6.07724778,1607.0,1606.9,2.96175]
[1744911812741,2.86944778,1607.0,1606.9,2.96175]
[1744911813043,0.00932778,1607.0,1606.9,2.96175]
[1744911813447,1.25409778,1607.0,1606.9,2.96175]
[1744911813637,0.00932778,1607.0,1606.9,2.96175]
[1744911815149,1.25409778,1607.0,1606.9,2.96175]
[1744911815541,2.96959778,1607.0,1606.9,2.96175]
[1744911816049,1.72482778,1607.0,1606.9,2.96175]
[1744911816750,2.96959778,1607.0,1606.9,2.96175]
[1744911817852,1.24493,1606.9,1606.8,1.24489]
[1744911818049,1.24493,1606.8,1606.7,7.52008778]
[1744911818747,1.24493,1606.8,1606.7,5.78028778]
[1744911818945,2.89023,1606.8,1606.7,5.78028778]
[1744911819141,2.89023,1606.8,1606.7,4.53532778]
[1744911819346,2.89023,1606.8,1606.7,5.78033778]
[1744911819754,2.1647,1606.9,1606.8,1.24493]
[1744911819955,2.1647,1606.9,1606.8,3.93953]
[1744911821051,3.7545,1606.9,1606.8,1.7374]
[1744911821251,1.24493,1606.8,1606.7,5.78027778]
[1744911821549,2.83473,1606.8,1606.7,7.51767778]
[1744911827072,1.24493,1606.8,1606.7,7.51767778]
[1744911827568,2.16473,1606.9,1606.8,1.24493]
[1744911827860,4.84522778,1607.0,1606.9,1.24485]
[1744911828060,3.21712778,1607.0,1606.9,2.19935]
[1744911828260,3.21712778,1607.0,1606.9,3.89975]
[1744911828563,0.00932778,1607.0,1606.9,3.89975]
[1744911828864,1.25409778,1607.0,1606.9,4.83165]
[1744911830362,1.24455,1607.4,1607.3,1.24449]
[1744911830968,2.95945,1607.4,1607.3,1.24449]
[1744911831493,2.95945,1607.4,1607.3,2.91039]
[1744911832195,0.00932778,1607.5,1607.4,1.24446]
[1744911832484,1.25371778,1607.5,1607.4,2.91036]
[1744911833379,0.00932778,1607.5,1607.4,2.91036]
[1744911833675,1.25371778,1607.5,1607.4,2.91036]
[1744911834002,0.00932778,1607.5,1607.4,2.91036]
[1744911834180,0.00932778,1607.5,1607.4,7.43136]
[1744911835181,1.25371778,1607.5,1607.4,7.43136]
[1744911835584,0.00932778,1607.5,1607.4,7.43136]
[1744911838170,1.9173,1607.9,1607.8,1.24415]
[1744911838464,3.5862,1607.9,1607.8,1.24415]
[1744911838866,1.9173,1607.9,1607.8,1.24415]
[1744911839068,1.9173,1607.9,1607.8,2.96885]
[1744911839454,1.67822778,1608.0,1607.9,1.24408]
[1744911839659,4.88602778,1608.0,1607.9,2.96878]
[1744911840264,1.67822778,1608.0,1607.9,2.96878]
[1744911840965,4.88602778,1608.0,1607.9,2.96878]
[1744911841159,7.78e-06,1608.0,1607.9,2.96878]
[1744911841359,10.21978795,1608.8,1608.2,3.10954]
[1744911841667,3.5985,1608.6,1608.5,1.24356]
[1744911842567,3.5985,1608.6,1608.5,2.92726]
[1744911843765,8.24734913,1608.7,1608.6,1.24354]
[1744911843965,0.00932778,1608.7,1608.6,7.42844]
[1744911844272,0.00932778,1608.7,1608.6,10.63624]
[1744911847972,3.13903,1609.0,1608.9,1.2433]
[1744911848368,2.8952,1609.1,1609.0,1.24323]
[1744911848565,1.652,1609.1,1609.0,1.24323]
[1744911849071,1.652,1609.1,1609.0,2.90353]
[1744911850676,1.2492985,1609.2,1609.1,1.24315]
[1744911850876,0.0062185,1609.2,1609.1,6.15735]
[1744911851068,2.6882,1609.4,1609.1,6.15735]
[1744911851376,1.24282,1609.6,1609.5,1.24284]
[1744911851562,2.99092,1609.6,1609.5,1.24284]
[1744911852274,1.7481,1609.6,1609.5,1.24284]
[1744911852775,1.8718,1609.7,1609.6,1.24276]
[1744911852977,0.9317,1609.7,1609.6,2.93266]
[1744911853174,1.6774,1609.8,1609.6,2.93266]
[1744911853175,1.6774,1609.8,1609.7,1.24269]
[1744911853477,0.9317,1609.9,1609.8,1.24261]
[1744911853670,2.6091,1609.9,1609.8,2.93251]
[1744911853888,2.6091,1609.9,1609.8,7.44551]
[1744911854175,0.9401,1610.0,1609.9,1.24253]
[1744911854376,0.9401,1610.0,1609.9,2.93243]
[1744911855078,1.6774,1610.1,1610.0,1.24245]
[1744911855276,1.6774,1610.1,1610.0,2.93235]
[1744911856469,2.19686,1610.2,1610.1,1.24238]
[1744911856774,3.926,1610.2,1610.1,5.75438]
[1744911857164,3.926,1610.2,1610.1,4.512]
[1744911857370,3.926,1610.2,1610.1,5.75438]
[1744911859776,3.926,1610.2,1610.1,4.512]
[1744911859979,3.926,1610.2,1610.1,5.75438]
[1744911860282,2.6837,1610.2,1609.9,4.45027]
[1744911860485,2.1968,1610.2,1610.1,4.511]
[1744911860878,2.1968,1610.2,1610.1,5.75338]
[1744911861379,2.1968,1610.2,1610.1,4.511]
[1744911863480,1.24245,1610.0,1609.9,7.7178]
[1744911863680,1.24245,1610.0,1609.9,8.96033]
[1744911865078,1.24244,1610.1,1610.0,1.24239]
[1744911865775,2.19686,1610.2,1610.1,1.24238]
[1744911865981,0.9545,1610.2,1610.1,1.24238]
[1744911866182,0.9973,1610.3,1610.2,1.2423]
[1744911866382,12.52263,1610.7,1610.3,3.10556]
[1744911866383,1.0191,1610.6,1610.3,3.10556]
[1744911866681,2.26119,1610.6,1610.5,1.24207]
[1744911867075,2.26119,1610.6,1610.5,5.75107]
[1744911867076,1.0191,1610.6,1610.5,5.75107]
[1744911867581,2.26109,1610.6,1610.5,5.75107]
[1744911867778,2.26109,1610.6,1610.5,4.509]
[1744911868383,1.24215,1610.4,1610.3,10.54989]
[1744911869078,1.24213,1610.5,1610.4,1.24209]
[1744911869279,3.2078,1610.7,1610.4,4.69625]
[1744911869583,1.24194,1610.7,1610.6,1.24199]
[1744911869787,4.08396,1610.9,1610.6,1.24199]
[1744911869788,1.24189,1610.8,1610.7,1.24187]
[1744911870083,1.24189,1610.8,1610.7,2.83277]
[1744911870278,2.22132,1610.9,1610.8,1.24184]
[1744911870783,1.24184,1610.8,1610.7,2.83275]
[1744911871485,1.24184,1610.8,1610.7,1.5909]
[1744911871981,1.24191,1610.7,1610.6,4.51832778]
[1744911872185,1.24191,1610.7,1610.6,6.16792778]
[1744911872379,1.24191,1610.7,1610.6,0.00932778]
[1744911876385,6.24191,1610.7,1610.6,0.00932778]
[1744911877481,3.10506,1610.6,1610.2,4.508]
[1744911877682,0.9265,1610.5,1610.2,4.508]
[1744911877988,1.24222,1610.3,1610.2,4.508]
[1744911878187,1.24222,1610.3,1610.2,6.1681]
[1744911878384,1.24222,1610.3,1610.2,9.3759]
[1744911878589,0.9265,1610.5,1609.9,1.9821]
[1744911878783,1.2423,1610.2,1610.1,0.00932778]
[1744911879286,1.24253,1609.9,1609.8,3.2078]
[1744911879474,1.24253,1609.9,1609.8,4.8679]
[1744911879876,1.24253,1609.9,1609.8,1.6601]
[1744911880092,1.24253,1609.9,1609.8,2.90271]
[1744911880385,1.24253,1609.9,1609.8,6.11051]
[1744911880586,1.24253,1609.9,1609.8,4.8679]
[1744911880787,1.24253,1609.9,1609.8,6.11051]
[1744911880983,0.9939,1610.2,1609.8,14.3709]
[1744911881191,1.24245,1610.0,1609.9,2.85057]
[1744911881685,1.24244,1610.1,1610.0,1.24242]
[1744911881886,1.24245,1610.0,1609.9,2.19617]
[1744911883291,0.00932778,1610.4,1610.3,1.24222]
[1744911883492,0.00932778,1610.4,1610.3,5.74622]
[1744911883792,0.00932778,1610.4,1610.3,6.69992]
[1744911884794,0.00932778,1610.4,1610.3,11.69992]
[1744911885387,0.00932778,1610.4,1610.3,6.69992]
[1744911886898,3.10422,1611.0,1610.3,10.4577]
[1744911887089,1.24191,1610.7,1610.6,3.2078]
[1744911887287,1.2419,1610.8,1610.7,1.2419]
[1744911887992,1.24191,1610.7,1610.6,8.96207778]
[1744911888493,1.24191,1610.7,1610.6,5.75431778]
[1744911889081,1.24191,1610.7,1610.6,4.51232778]
[1744911889288,1.24191,1610.7,1610.6,7.72012778]
[1744911889495,1.24191,1610.7,1610.6,5.75431778]
[1744911889897,3.9711,1610.8,1610.7,1.24191]
[1744911890091,0.00932778,1610.9,1610.8,1.24184]
[1744911890788,0.00932778,1610.9,1610.8,4.44964]
[1744911891188,0.00932778,1610.9,1610.8,1.24184]
[1744911892092,0.00932778,1610.9,1610.8,4.44964]
[1744911892792,2.25303,1611.3,1611.2,1.24153]
[1744911892994,1.24153,1611.3,1611.2,1.24153]
[1744911894194,3.10325,1611.5,1611.0,3.10418]
[1744911894393,1.24153,1611.3,1611.2,1.24151]
[1744911894791,1.24153,1611.2,1611.1,4.502]
[1744911895101,1.24168,1611.0,1610.9,6.46041]
[1744911895300,2.90407,1611.1,1611.0,1.24168]
[1744911895703,1.24168,1611.0,1610.9,1.0046]
[1744911895899,1.24184,1610.8,1610.7,7.7098]
[1744911896203,1.24184,1610.8,1610.7,8.95167]
[1744911896605,2.90422,1610.9,1610.8,1.24184]
[1744911897004,1.24184,1610.8,1610.7,8.95167]
[1744911897716,1.24184,1610.8,1610.7,7.7098]
[1744911898045,2.90424,1610.8,1610.7,7.7098]
[1744911898200,3.87454,1610.8,1610.7,7.7098]
[1744911899504,3.87454,1610.8,1610.7,4.502]
[1744911899809,1.24191,1610.7,1610.6,1.25128778]
[1744911900013,2.83761,1610.7,1610.6,1.25128778]
[1744911900207,2.83761,1610.7,1610.6,1.60842778]
[1744911900715,1.24215,1610.4,1610.3,9.53235996]
[1744911900907,1.24215,1610.4,1610.3,11.13145996]
[1744911901511,1.24215,1610.4,1610.3,9.88923996]
[1744911901705,1.24215,1610.4,1610.3,11.13145996]
[1744911902113,0.00932778,1610.5,1610.4,1.24215]
[1744911902309,0.00932778,1610.5,1610.4,7.49555]
[1744911902712,3.10383,1611.3,1610.4,11.2534]
[1744911903014,1.24173,1611.0,1610.9,1.24171]
[1744911903206,1.24173,1611.0,1610.9,4.502]
[1744911903406,1.24166,1611.1,1611.0,1.24168]
[1744911903608,1.24166,1611.1,1611.0,2.99308]
[1744911904016,1.24158,1611.2,1611.1,1.24158]
[1744911904217,1.24161,1611.1,1611.0,1.7514]
[1744911904518,1.24161,1611.1,1611.0,1.76072778]
[1744911904816,1.24161,1611.1,1611.0,3.00240778]
[1744911906107,1.9197,1611.3,1611.0,1.76072778]
[1744911906310,2.9777,1611.4,1611.3,1.24145]
[1744911906507,2.9777,1611.4,1611.3,2.86885]
[1744911907013,2.9777,1611.4,1611.3,1.6274]
[1744911908114,1.24145,1611.3,1611.2,4.502]
[1744911908311,2.82755,1611.3,1611.2,5.74353]
[1744911908519,1.24145,1611.3,1611.2,5.74353]
[1744911909015,1.24132,1611.5,1611.4,1.24132]
[1744911909317,5.1684,1611.6,1611.3,2.95009]
[1744911909523,1.5861,1611.4,1611.3,2.95009]
[1744911910217,3.2078,1611.6,1611.3,1.7087]
[1744911910421,6.7865,1611.8,1611.7,1.24114]
[1744911910620,3.5787,1611.8,1611.7,1.24114]
[1744911912417,3.2078,1612.0,1611.9,1.24095]
[1744911912819,4.44871,1612.0,1611.9,1.24095]
[1744911913124,4.8142,1612.0,1611.9,1.24095]
[1744911913316,6.05511,1612.0,1611.9,1.24095]
[1744911913822,2.84731,1612.0,1611.9,1.24095]
[1744911914023,6.05511,1612.0,1611.9,1.24095]
[1744911914622,1.24099,1611.9,1611.8,4.497]
[1744911914819,2.98219,1611.9,1611.8,5.73807]
[1744911915017,1.7412,1611.9,1611.8,5.73807]
[1744911915223,2.98219,1611.9,1611.8,5.73807]
[1744911915726,1.7412,1611.9,1611.8,5.73807]
[1744911915927,2.98219,1611.9,1611.8,5.73807]
[1744911916318,1.7412,1611.9,1611.8,5.73807]
[1744911916518,2.98219,1611.9,1611.8,5.73807]
[1744911918226,3.2078,1612.0,1611.9,1.24099]
[1744911918428,3.18497,1612.1,1612.0,1.24091]
[1744911918621,1.24091,1612.0,1611.9,1.24094]
[1744911918818,2.93871,1612.0,1611.9,1.25026778]
[1744911920129,1.6978,1612.0,1611.9,1.25026778]
[1744911920325,1.6978,1612.0,1611.9,2.99826778]
[1744911920627,1.9441,1612.1,1612.0,1.24091]
[1744911920828,1.9441,1612.1,1612.0,2.98891]
[1744911921127,3.55,1612.1,1612.0,2.98891]
[1744911923933,0.9502,1612.1,1612.0,2.98891]
[1744911927535,1.24073,1612.3,1612.0,4.85027]
[1744911927754,1.24058,1612.5,1612.4,1.24061]
[1744911927939,1.752,1612.5,1612.4,1.24061]
[1744911928428,1.752,1612.5,1612.4,2.88231]
[1744911929843,4.44809,1612.9,1612.6,3.1011]
[1744911930029,5.37479,1612.9,1612.8,1.2403]
[1744911930430,10.37479,1612.9,1612.8,1.2403]
[1744911931034,1.2403,1612.8,1612.7,1.24032]
[1744911931330,1.24037,1612.7,1612.6,1.24973778]
[1744911931936,4.44817,1612.7,1612.6,1.24973778]
[1744911932124,1.24037,1612.7,1612.6,1.24973778]
[1744911932328,1.24037,1612.7,1612.6,0.00932778]
[1744911932532,8.2078,1612.7,1612.3,3.2078]
[1744911932829,3.10171,1612.3,1612.0,1.24088]
[1744911933136,1.24094,1612.0,1611.9,1.24092]
[1744911933532,2.91394,1612.0,1611.9,1.24092]
[1744911933837,1.673,1612.0,1611.9,1.24092]
[1744911934834,1.24091,1612.0,1611.9,1.24092]
[1744911935035,1.24085,1612.1,1612.0,1.24084]
[1744911935233,2.82465,1612.1,1612.0,1.24084]
[1744911935936,1.5838,1612.1,1612.0,1.24084]
[1744911936135,1.9693,1612.2,1612.1,1.24084]
[1744911936542,6.7609,1612.2,1612.1,1.24084]
[1744911937638,6.7609,1612.2,1612.1,2.84674]
[1744911938041,3.5531,1612.2,1612.1,2.84674]
[1744911939247,3.2078,1612.4,1612.3,1.24068]
[1744911939741,3.2078,1612.4,1612.3,2.96688]
[1744911940141,1.6147,1612.5,1612.4,1.24061]
[1744911940342,6.06303,1612.5,1612.4,1.24061]
[1744911940541,2.85523,1612.5,1612.4,1.24061]
[1744911940946,1.24064,1612.4,1612.3,1.24062]
[1744911941144,3.86664,1612.4,1612.3,1.24062]
[1744911941538,2.626,1612.4,1612.3,1.24062]
[1744911941846,2.626,1612.4,1612.2,1.2407]
[1744911942034,3.87898,1612.3,1612.2,1.2407]
[1744911942437,2.6383,1612.3,1612.2,1.2407]
[1744911942640,1.24081,1612.2,1612.1,1.24078]
[1744911942839,2.86571,1612.2,1612.1,1.24078]
[1744911943242,1.24084,1612.1,1612.0,2.89334]
[1744911943442,2.86574,1612.1,1612.0,2.89334]
[1744911944550,1.6249,1612.1,1612.0,2.89334]
[1744911946552,3.84134,1612.3,1612.2,1.24076]
[1744911946851,2.6006,1612.3,1612.2,1.24076]
[1744911947352,3.84128,1612.3,1612.2,1.24076]
[1744911947553,2.6006,1612.3,1612.2,1.24076]
[1744911948254,7.04908,1612.3,1612.2,2.87436]
[1744911948648,5.8084,1612.3,1612.2,2.87436]
[1744911949357,1.2405,1612.6,1612.5,1.24047]
[1744911949552,4.6228,1612.6,1612.5,1.24047]
[1744911950256,3.3823,1612.6,1612.4,1.6336]
[1744911950457,3.02702,1612.6,1612.5,1.24053]
[1744911952160,3.10202,1612.6,1612.5,1.24053]
[1744911952756,1.24053,1612.5,1612.4,1.24054]
[1744911953358,1.31553,1612.5,1612.4,1.24054]
[1744911953761,0.075,1612.5,1612.4,1.24054]
[1744911954059,1.31553,1612.5,1612.4,1.24054]
[1744911955057,1.24091,1612.0,1611.9,8.93973]
[1744911955262,1.24099,1611.9,1611.8,11.24790774]
[1744911955461,3.05209,1611.9,1611.8,11.24790774]
[1744911955757,1.8111,1611.9,1611.8,11.24790774]
[1744911955957,0.9081,1611.9,1611.8,11.24790774]
[1744911956169,2.22409,1611.9,1611.8,11.24790774]
[1744911956371,0.9831,1611.9,1611.8,11.24790774]
[1744911956576,2.22409,1611.9,1611.8,2.95776778]
[1744911956871,0.9831,1611.9,1611.8,2.95776778]
[1744911957269,2.22409,1611.9,1611.8,2.95776778]
[1744911957474,2.22409,1611.9,1611.8,0.00932778]
[1744911957675,2.22409,1611.9,1611.8,1.25039778]
[1744911957867,0.9831,1611.9,1611.8,1.25039778]
[1744911958174,0.9831,1611.9,1611.8,2.84659778]
[1744911958570,2.22409,1611.9,1611.8,2.84659778]
[1744911959971,1.24114,1611.7,1611.6,1.44565]
[1744911960281,4.52394,1611.7,1611.6,1.44565]
[1744911960968,0.075,1611.7,1611.6,5.89467]
[1744911961167,2.14387,1612.1,1611.9,1.24093]
[1744911961368,3.2078,1612.7,1612.0,7.6988]
[1744911961672,3.2078,1612.8,1612.3,6.30951]
[1744911961975,0.887,1612.9,1612.7,4.44811]
[1744911961976,1.24023,1612.9,1612.7,4.44811]
[1744911962189,1.31523,1612.9,1612.8,1.614]
[1744911962774,0.075,1612.9,1612.8,2.8543]
[1744911963167,14.3280992,1613.5,1612.8,6.614]
[1744911963475,14.3280992,1613.5,1613.3,4.44771]
[1744911963677,14.3280992,1613.5,1613.3,8.93871]
[1744911963864,6.78683306,1613.4,1613.3,13.93871]
[1744911964193,0.075,1613.4,1613.3,13.93871]
[1744911966372,0.075,1613.4,1613.3,14.81551]
[1744911966568,0.075,1613.4,1613.2,1.6343]
[1744911966776,1.31489,1613.4,1613.2,1.6343]
[1744911966981,0.075,1613.4,1613.2,1.6343]
[1744911967275,0.075,1613.4,1613.2,2.87424]
[1744911967576,1.23985,1613.4,1613.3,4.49]
[1744911968169,0.075,1613.4,1613.2,1.6343]
[1744911968379,0.075,1613.4,1613.3,1.23991]
[1744911968579,1.31484,1613.4,1613.2,2.87423]
[1744911968781,0.075,1613.4,1613.2,1.6343]
[1744911969172,1.31488,1613.4,1613.2,2.87429]
[1744911969779,1.31488,1613.4,1613.2,1.6343]
[1744911970081,0.075,1613.4,1613.3,1.23991]
[1744911970579,0.075,1613.4,1613.3,4.44771]
[1744911970782,0.075,1613.4,1613.3,9.44771]
[1744911970979,0.075,1613.4,1613.3,10.28731]
[1744911973279,1e-05,1613.4,1613.3,10.28731]
[1744911973485,3.09804,1614.3,1613.6,3.09912]
[1744911973685,3.2078,1614.2,1613.7,12.40264]
[1744911973890,1.2394,1614.0,1613.9,1.23941]
[1744911974081,1.23938,1614.0,1613.9,1.23939]
[1744911974277,0.075,1614.0,1613.9,1.23939]
[1744911974782,0.075,1614.0,1613.9,2.84689]
[1744911975285,0.075,1614.0,1613.9,11.05469]
[1744911976083,0.8363,1614.7,1613.9,9.8153]
[1744911976275,4.44676,1614.6,1614.5,1.23897]
[1744911976478,1.23896,1614.6,1614.5,5.72297]
[1744911976775,1.23896,1614.6,1614.5,4.484]
[1744911976980,1.23896,1614.6,1614.5,5.72299]
[1744911977188,1.31396,1614.6,1614.5,4.484]
[1744911977487,0.075,1614.6,1614.5,5.72299]
[1744911977682,0.075,1614.6,1614.5,7.43479]
[1744911979290,1.23907,1614.4,1614.3,5.7221]
[1744911979588,1.23907,1614.4,1614.3,6.1948]
[1744911979791,1.23907,1614.4,1614.3,7.43395]
[1744911979980,1.23907,1614.4,1614.3,6.1948]
[1744911980181,1.31407,1614.4,1614.3,7.43395]
[1744911980487,0.075,1614.4,1614.3,7.43295]
[1744911981489,1.31407,1614.4,1614.3,6.1938]
[1744911981683,1.31407,1614.4,1614.3,7.43295]
[1744911981877,1.31407,1614.4,1614.3,6.1938]
[1744911982088,1.23915,1614.3,1614.2,4.44699]
[1744911982291,1.6651,1614.3,1614.0,1.23936]
[1744911982586,1.23938,1614.0,1613.9,10.53341]
[1744911982790,1.23938,1614.0,1613.9,6.0862]
[1744911983289,1.31438,1614.0,1613.9,7.32565]
[1744911983481,1.31438,1614.0,1613.9,6.0862]
[1744911983887,1.23945,1613.9,1613.8,0.00929742]
[1744911984140,2.83455,1613.9,1613.8,0.00929742]
[1744911984289,7.90955,1613.9,1613.8,0.00929742]
[1744911985484,2.90955,1613.9,1613.8,0.00929742]
[1744911986382,0.075,1613.9,1613.8,8.93862742]
[1744911987392,1.31445,1613.9,1613.8,7.69909742]
[1744911987582,1.31445,1613.9,1613.8,4.49129742]
[1744911988095,1.31445,1613.9,1613.8,0.00929742]
[1744911988405,6.31445,1613.9,1613.8,0.00929742]
[1744911988690,7.19435,1613.9,1613.8,0.00929742]
[1744911989190,0.075,1613.9,1613.8,4.45662742]
[1744911989390,0.075,1613.9,1613.8,9.45662742]
[1744911990887,0.075,1613.9,1613.8,4.45662742]
[1744911991280,0.075,1613.9,1613.8,9.45662742]
[1744911992995,0.075,1613.9,1613.8,4.45662742]
[1744911995883,1.7688,1613.9,1613.8,4.45662742]
[1744911996085,0.075,1613.9,1613.8,4.45662742]
[1744911996290,2.93295,1614.3,1614.2,1.23922]
[1744911996597,1.23922,1614.2,1614.1,5.72125]
[1744911996892,2.93302,1614.2,1614.1,1.23925]
[1744911997094,1.2393,1614.1,1614.0,5.72131]
[1744911997286,1.6938,1614.1,1614.0,5.72131]
[1744911997492,2.9331,1614.1,1614.0,5.72131]
[1744911997922,1.6938,1614.1,1614.0,5.72131]
[1744911998090,2.9331,1614.1,1614.0,5.72131]
[1744911998294,3.0081,1614.1,1614.0,5.72131]
[1744911998999,1.7688,1614.1,1614.0,5.72131]
[1744911999400,1.7688,1614.1,1614.0,8.92911]
[1744911999796,6.7688,1614.1,1614.0,4.44711]
[1744912000035,6.7688,1614.1,1614.0,1.23938]
[1744912000497,1.7688,1614.1,1614.0,4.44718]
[1744912000799,1.7688,1614.1,1614.0,1.23938]
[1744912002096,3.0081,1614.1,1614.0,1.23938]
[1744912002699,1.23945,1613.9,1613.8,5.72874742]
[1744912002904,1.23945,1613.9,1613.8,1.24882742]
[1744912003101,1.31445,1613.9,1613.8,0.00929742]
[1744912003298,6.31445,1613.9,1613.8,0.00929742]
[1744912003497,8.82155,1613.9,1613.8,0.00929742]
[1744912003997,8.82155,1613.9,1613.8,1.24882742]
[1744912004197,1.7496,1613.9,1613.8,1.24882742]
[1744912004399,2.98905,1613.9,1613.8,1.24882742]
[1744912005706,1.7496,1613.9,1613.8,1.24882742]
[1744912005900,0.075,1613.9,1613.8,1.24882742]
[1744912006206,0.075,1613.9,1613.8,2.93012742]
[1744912006605,1.31445,1613.9,1613.8,0.00929742]
[1744912006805,6.31445,1613.9,1613.8,0.00929742]
[1744912007205,8.79495,1613.9,1613.8,0.00929742]
[1744912007407,3.09883,1613.8,1613.4,4.481]
[1744912007703,3.09883,1613.8,1613.5,1.23974]
[1744912007704,1.23975,1613.6,1613.5,1.23974]
[1744912007905,3.74136,1613.7,1613.6,1.23968]
[1744912008102,1.23971,1613.6,1613.5,1.23971]
[1744912008305,2.88821,1613.6,1613.5,1.7462]
[1744912008506,2.88821,1613.6,1613.5,6.19376]
[1744912008804,2.88821,1613.6,1613.5,2.98596]
[1744912009001,2.88821,1613.6,1613.5,6.19376]
[1744912009200,2.96321,1613.6,1613.5,4.954]
[1744912009405,2.96321,1613.6,1613.5,3.2078]
[1744912009815,2.96318,1613.6,1613.5,1.23976]
[1744912010108,1.7235,1613.6,1613.5,2.98596]
[1744912010606,2.96318,1613.6,1613.5,2.98596]
[1744912010811,1.23976,1613.5,1613.4,20.60320826]
[1744912011001,6.19896,1613.5,1613.4,20.60320826]
[1744912011203,3.06616,1613.5,1613.4,0.00929742]
[1744912011505,1.23999,1613.2,1613.1,8.29013996]
[1744912012214,1.31499,1613.2,1613.1,8.29013996]
[1744912012408,3.06639,1613.2,1613.1,8.29013996]
[1744912013295,0.075,1613.2,1613.1,12.73800996]
[1744912013614,0.075,1613.2,1613.1,18.95930996]
[1744912014710,1.31499,1613.2,1613.1,18.95930996]
[1744912014911,1.31499,1613.2,1613.1,4.481]
[1744912015411,0.075,1613.2,1613.1,9.44787]
[1744912015606,0.075,1613.2,1613.1,11.88507]
[1744912015799,0.075,1613.2,1613.1,12.77177]
[1744912017611,0.075,1613.2,1613.0,0.00929742]
[1744912017812,1.31499,1613.2,1613.1,1.24007]
[1744912018510,1.31499,1613.2,1613.1,8.92987]
[1744912018511,0.075,1613.2,1613.1,8.92987]
[1744912019500,1.31499,1613.2,1613.1,1.24007]
[1744912019706,3.06269,1613.2,1613.1,1.24007]
[1744912020513,1.24007,1613.1,1613.0,2.91717742]
[1744912020815,2.87077,1613.1,1613.0,0.00929742]
[1744912021011,2.87077,1613.1,1613.0,1.24943742]
[1744912021207,2.94577,1613.1,1613.0,1.24943742]
[1744912021912,2.94577,1613.1,1613.0,0.00929742]
[1744912022410,2.94577,1613.1,1613.0,1.24943742]
[1744912022614,1.7057,1613.1,1613.0,2.93453742]
[1744912023217,0.075,1613.1,1613.0,2.93453742]
[1744912023809,2.58e-06,1613.1,1613.0,7.93453742]
[1744912025710,2.58e-06,1613.1,1613.0,12.41653742]
[1744912026711,2.58e-06,1613.1,1613.0,98.35153742]
[1744912026918,0.00929742,1613.7,1613.6,1.23968]